bitfinex/quotes_BTCUSD_20230403
["timestamp","ask_amount","ask_price","bid_price","bid_amount"]
[1680552969216,0.18274528,27678.0,27670.0,0.14189681]
[1680552969500,0.02688528,27678.0,27670.0,0.14189681]
[1680552969779,0.02670528,27678.0,27671.0,0.4]
[1680552970066,0.02670528,27678.0,27672.0,0.14189681]
[1680552970325,0.15586,27677.0,27672.0,0.14189681]
[1680552970601,0.00018,27677.0,27671.0,0.39313566]
[1680552970880,0.15586,27676.0,27671.0,0.39313566]
[1680552971239,0.01798671,27677.0,27671.0,0.53503247]
[1680552971607,0.01780671,27677.0,27671.0,0.53503247]
[1680552971885,0.00889857,27678.0,27671.0,0.53503247]
[1680552972175,0.00889857,27678.0,27672.0,0.14189681]
[1680552973135,0.00018,27682.0,27672.0,0.14189681]
[1680552973141,0.02295001,27684.0,27672.0,0.14207681]
[1680552973407,0.15586,27681.0,27673.0,0.14189681]
[1680552973690,0.02913969,27684.0,27673.0,6e-05]
[1680552973691,0.01780671,27677.0,27673.0,6e-05]
[1680552974065,0.01780671,27677.0,27671.0,0.39325566]
[1680552974280,0.17352,27676.0,27671.0,0.39319566]
[1680552974560,0.17352,27676.0,27671.0,0.39331566]
[1680552974867,0.08275597,27682.0,27671.0,0.39331566]
[1680552974868,0.02277001,27690.0,27675.0,0.3665]
[1680552975277,0.31241592,27695.0,27675.0,0.3665]
[1680552975278,0.02277001,27701.0,27676.0,0.489196]
[1680552975281,0.02277001,27701.0,27692.0,0.68246429]
[1680552975551,0.14866,27712.0,27697.0,0.3665]
[1680552975849,0.41,27723.0,27705.0,0.02277059]
[1680552975850,0.41018,27723.0,27705.0,0.02277059]
[1680552976132,0.41018,27723.0,27710.0,0.14189681]
[1680552976133,0.17328,27711.0,27710.0,0.14189681]
[1680552976417,6e-05,27713.0,27710.0,0.14189681]
[1680552977191,0.1534,27716.0,27711.0,0.4]
[1680552977193,0.1534,27716.0,27710.0,0.14189681]
[1680552977197,0.1,27722.0,27711.0,0.14189681]
[1680552977463,0.17328,27721.0,27712.0,0.14189681]
[1680552978033,0.32188,27721.0,27712.0,0.14189681]
[1680552978331,0.01927152,27723.0,27712.0,0.14189681]
[1680552978332,0.01927152,27723.0,27712.0,0.14207681]
[1680552978587,0.17322,27720.0,27712.0,0.14201681]
[1680552978873,0.01,27723.0,27712.0,0.14207681]
[1680552979148,0.01,27723.0,27713.0,0.14189681]
[1680552979149,0.17322,27722.0,27713.0,0.14189681]
[1680552979787,0.04268022,27722.0,27713.0,0.14207681]
[1680552980072,0.04268022,27722.0,27705.0,5.8e-07]
[1680552980073,0.14866,27717.0,27708.0,0.00018]
[1680552980350,0.24866,27717.0,27706.0,0.4668]
[1680552980643,0.3,27716.0,27708.0,0.046698]
[1680552981101,6e-05,27721.0,27708.0,0.14207681]
[1680552981103,0.04268022,27722.0,27708.0,0.14207681]
[1680552981104,0.04286022,27722.0,27708.0,0.14207681]
[1680552981399,0.04268022,27722.0,27709.0,0.14189681]
[1680552981679,0.14866,27714.0,27709.0,0.14189681]
[1680552981999,0.17328,27721.0,27709.0,0.00018]
[1680552982000,0.00018,27719.0,27709.0,0.00018]
[1680552982238,0.17328,27713.0,27710.0,0.54189681]
[1680552982499,0.17328,27713.0,27710.0,0.00018]
[1680552982753,0.3,27714.0,27710.0,0.00018]
[1680552983004,0.17328,27712.0,27707.0,0.46698]
[1680552983482,0.17328,27713.0,27707.0,0.60887681]
[1680552983717,0.17328,27711.0,27707.0,0.60887681]
[1680552983957,0.17328,27711.0,27707.0,0.46698]
[1680552984204,0.17328,27713.0,27707.0,0.46698]
[1680552984452,0.17328,27710.0,27707.0,0.46698]
[1680552984684,0.17328,27712.0,27706.0,0.00018]
[1680552984916,0.17328,27709.0,27706.0,0.00012]
[1680552985155,0.17328,27709.0,27705.0,5.8e-07]
[1680552985156,0.17328,27711.0,27705.0,5.8e-07]
[1680552985391,0.17328,27708.0,27705.0,0.14189739]
[1680552985637,0.00018,27713.0,27706.0,0.055035]
[1680552985871,0.14866,27718.0,27705.0,0.00018058]
[1680552985872,0.17328,27710.0,27707.0,0.14189681]
[1680552986107,0.14884,27718.0,27707.0,0.00018]
[1680552986108,0.00018,27715.0,27707.0,0.00018]
[1680552986352,0.17328,27716.0,27705.0,5.8e-07]
[1680552986591,0.14866,27708.0,27695.0,0.56856761]
[1680552986826,0.14866,27696.0,27695.0,0.55161129]
[1680552987069,0.14366,27696.0,27695.0,0.55143129]
[1680552987313,0.1734,27696.0,27695.0,0.55143129]
[1680552987772,0.00018,27699.0,27695.0,0.55143129]
[1680552988001,0.1734,27696.0,27695.0,0.6933281]
[1680552988240,0.00018,27698.0,27695.0,0.55161129]
[1680552989010,0.01780671,27702.0,27695.0,0.55161129]
[1680552989011,0.00018,27700.0,27696.0,0.395]
[1680552989015,0.00018,27701.0,27700.0,0.025495]
[1680552989259,0.01780671,27708.0,27700.0,0.025495]
[1680552989498,0.01780671,27708.0,27701.0,0.14189681]
[1680552989740,0.17334,27707.0,27701.0,0.14189681]
[1680552990206,0.19114671,27707.0,27701.0,0.14189681]
[1680552990685,0.21045954,27706.0,27701.0,0.14207681]
[1680552990912,0.00912198,27710.0,27702.0,0.4]
[1680552991162,6e-05,27713.0,27702.0,0.4]
[1680552991163,0.01811,27707.0,27702.0,0.03395504]
[1680552991407,0.01793,27703.0,27700.0,0.02103144]
[1680552991649,0.15579287,27703.0,27695.0,0.52375818]
[1680552991906,0.31120287,27702.0,27695.0,0.52375818]
[1680552992144,0.31144287,27702.0,27695.0,0.52375818]
[1680552992384,0.4734,27701.0,27695.0,0.52375818]
[1680552992612,0.61138287,27701.0,27695.0,0.52375818]
[1680552992860,0.61138287,27701.0,27695.0,0.66565499]
[1680552992861,0.17334,27700.0,27695.0,0.66565499]
[1680552993102,0.17334,27700.0,27695.0,0.52375818]
[1680552993338,0.17334,27700.0,27696.0,0.4]
[1680552993603,0.00018,27703.0,27696.0,0.54189681]
[1680552993848,0.00894852,27713.0,27698.0,0.3743]
[1680552993849,0.17346,27711.0,27698.0,0.3743]
[1680552994089,0.31126287,27711.0,27699.0,0.14189681]
[1680552994322,0.13786287,27710.0,27700.0,0.4]
[1680552994566,0.31132287,27710.0,27701.0,0.14189681]
[1680552994795,0.17328,27709.0,27701.0,0.14189681]
[1680552995056,0.13786287,27708.0,27701.0,0.14189681]
[1680552995277,0.13786287,27708.0,27698.0,0.4]
[1680552995278,0.13786287,27707.0,27698.0,0.4]
[1680552995518,0.13786287,27707.0,27698.0,0.54189681]
[1680552995519,0.13786287,27706.0,27698.0,0.54189681]
[1680552995979,0.17328,27705.0,27698.0,0.54189681]
[1680552996268,0.13786287,27704.0,27698.0,0.54189681]
[1680552996465,0.43804287,27704.0,27698.0,0.4]
[1680552996702,0.17328,27703.0,27698.0,0.4]
[1680552996928,0.31132287,27703.0,27698.0,0.4]
[1680552997154,0.47352,27703.0,27698.0,0.4]
[1680552997383,0.39050693,27703.0,27698.0,0.40018]
[1680552997632,0.00018,27707.0,27699.0,0.51619681]
[1680552997874,0.13786287,27706.0,27699.0,0.59529681]
[1680552998113,0.13786287,27706.0,27699.0,0.59547681]
[1680552998363,0.17328,27705.0,27700.0,0.4]
[1680552998603,0.12498935,27705.0,27701.0,0.14189681]
[1680552998846,0.17328,27704.0,27701.0,0.14189681]
[1680552999072,0.00018,27709.0,27702.0,0.051057]
[1680552999295,0.17328,27712.0,27703.0,0.14189681]
[1680552999777,0.13786287,27712.0,27703.0,0.14189681]
[1680553000004,0.31114287,27711.0,27703.0,0.14189681]
[1680553000241,0.13786287,27710.0,27703.0,0.14201681]
[1680553000514,0.31114287,27710.0,27703.0,0.14207681]
[1680553000757,0.17328,27709.0,27703.0,0.14207681]
[1680553000995,0.17328,27709.0,27703.0,0.00018]
[1680553000996,0.31114287,27709.0,27703.0,0.00018]
[1680553001461,0.17328,27708.0,27703.0,0.00018]
[1680553001696,0.34804848,27708.0,27703.0,0.00018]
[1680553001918,0.34764848,27708.0,27702.0,0.45358]
[1680553002157,0.47328,27707.0,27702.0,0.59547681]
[1680553002392,0.47328,27707.0,27702.0,0.45358]
[1680553002393,0.61114287,27707.0,27702.0,0.45358]
[1680553002629,0.17328,27706.0,27702.0,0.45358]
[1680553002955,0.47328,27706.0,27702.0,0.45358]
[1680553003438,0.00018,27707.0,27702.0,0.00018]
[1680553003676,0.03690561,27708.0,27697.0,0.86992]
[1680553003912,0.0090946,27715.0,27712.0,0.02009439]
[1680553004139,0.55223133,27714.0,27712.0,0.02009439]
[1680553004386,0.55223133,27714.0,27713.0,0.14189681]
[1680553004639,0.54723133,27714.0,27712.0,0.02009439]
[1680553004885,0.3,27713.0,27712.0,0.02009439]
[1680553006075,0.17322,27713.0,27712.0,0.02009439]
[1680553006564,0.17322,27714.0,27712.0,0.02009439]
[1680553007037,0.4,27720.0,27714.0,0.2]
[1680553007038,1.00018,27720.0,27714.0,0.2]
[1680553007277,0.17322,27719.0,27715.0,0.14189681]
[1680553007753,1.00905254,27720.0,27715.0,0.14207681]
[1680553008000,1.0,27720.0,27715.0,0.14207681]
[1680553008245,1.0,27720.0,27715.0,0.51637681]
[1680553008699,0.93048042,27720.0,27715.0,0.00018]
[1680553008938,0.69052348,27720.0,27716.0,0.14189681]
[1680553009214,0.64052348,27720.0,27717.0,0.01418968]
[1680553009443,0.64052348,27720.0,27718.0,0.05113]
[1680553009685,0.63052348,27720.0,27718.0,0.05113]
[1680553009927,0.63052348,27720.0,27716.0,0.00018]
[1680553010379,0.76838635,27720.0,27713.0,0.00018]
[1680553010606,0.13786287,27719.0,27713.0,0.14189681]
[1680553010838,0.13786287,27719.0,27715.0,0.3743]
[1680553011068,0.01018,27723.0,27716.0,0.426012]
[1680553011318,0.01,27723.0,27718.0,0.3743]
[1680553011554,0.01,27723.0,27719.0,0.051382]
[1680553011787,0.01,27723.0,27713.0,0.4737]
[1680553012018,0.01,27723.0,27715.0,0.3743]
[1680553012019,0.17316,27722.0,27715.0,0.3743]
[1680553012237,0.17316,27722.0,27716.0,0.050535]
[1680553012238,0.00018,27722.0,27716.0,0.050535]
[1680553012460,0.00018,27722.0,27717.0,0.3693]
[1680553012694,0.01,27723.0,27718.0,0.052441]
[1680553012927,0.01,27723.0,27718.0,0.19433781]
[1680553013221,0.01,27723.0,27719.0,0.052367]
[1680553013454,0.01012,27723.0,27719.0,0.052367]
[1680553013688,0.01762671,27724.0,27719.0,0.56713237]
[1680553013920,0.01762671,27724.0,27710.0,0.3743]
[1680553014152,0.01780671,27722.0,27712.0,0.1619912]
[1680553014388,0.17334,27723.0,27713.0,0.11186112]
[1680553014628,0.00018,27723.0,27714.0,0.053075]
[1680553014873,0.038,27727.0,27718.0,0.18038]
[1680553014874,0.05580671,27727.0,27718.0,0.18038]
[1680553015106,0.05580671,27727.0,27721.0,0.3743]
[1680553015351,0.038,27727.0,27724.0,0.3743]
[1680553015584,0.038,27727.0,27726.0,0.3743]
[1680553015847,0.038,27727.0,27726.0,0.19354781]
[1680553016089,0.038,27727.0,27726.0,0.051651]
[1680553016306,0.02277001,27733.0,27726.0,0.051651]
[1680553016307,0.02277001,27733.0,27727.0,0.4]
[1680553016533,0.02277001,27733.0,27728.0,0.19518081]
[1680553016763,0.02277001,27733.0,27729.0,0.053441]
[1680553017045,0.02277001,27733.0,27729.0,0.427741]
[1680553017509,0.02277001,27733.0,27729.0,0.053441]
[1680553017955,1e-08,27730.0,27729.0,0.427861]
[1680553018187,1e-08,27730.0,27729.0,0.427741]
[1680553018410,1e-08,27730.0,27729.0,0.52081591]
[1680553018875,0.02288,27739.0,27731.0,0.3743]
[1680553019106,0.02277001,27743.0,27739.0,0.3743]
[1680553019328,0.02277001,27743.0,27741.0,0.3743]
[1680553019571,0.02277001,27743.0,27741.0,0.56835981]
[1680553019801,0.02277001,27743.0,27741.0,0.62521379]
[1680553020024,0.02277001,27743.0,27741.0,0.48331698]
[1680553020255,0.02277001,27743.0,27741.0,0.052163]
[1680553020491,0.04057672,27742.0,27739.0,0.054735]
[1680553020724,0.04057672,27742.0,27734.0,0.4718]
[1680553020975,0.02277001,27742.0,27735.0,0.451806]
[1680553021205,0.02277001,27742.0,27737.0,0.3743]
[1680553021423,0.02277001,27742.0,27738.0,0.42625]
[1680553021651,0.02277001,27742.0,27736.0,0.10655028]
[1680553021652,0.02277001,27742.0,27739.0,0.052138]
[1680553021888,0.02277001,27742.0,27740.0,0.05242]
[1680553022376,0.02277001,27742.0,27737.0,0.052071]
[1680553022439,0.02277001,27742.0,27737.0,0.232331]
[1680553022725,0.02277001,27742.0,27738.0,0.06843013]
[1680553023002,0.02277001,27742.0,27740.0,0.4]
[1680553023231,0.02277001,27742.0,27741.0,0.425674]
[1680553024157,0.02277001,27747.0,27743.0,0.4]
[1680553024392,0.02277001,27747.0,27745.0,0.3743]
[1680553024628,0.02277001,27747.0,27746.0,0.74639281]
[1680553024629,0.02295001,27747.0,27746.0,0.74639281]
[1680553024864,1.00000001,27750.0,27746.0,0.74637281]
[1680553025099,1.00012,27750.0,27748.0,0.55448]
[1680553025330,1.00012,27750.0,27749.0,0.50239658]
[1680553025591,0.92327268,27750.0,27749.0,0.053203]
[1680553025821,0.02288,27758.0,27750.0,0.4]
[1680553026063,0.02288,27758.0,27751.0,0.427869]
[1680553026315,0.02288,27758.0,27755.0,0.3743]
[1680553026554,0.02288,27758.0,27752.0,0.052034]
[1680553026555,0.02288,27758.0,27757.0,0.3743]
[1680553026787,0.02288,27758.0,27757.0,0.56729881]
[1680553027278,0.02288,27758.0,27757.0,0.425402]
[1680553027759,0.03277001,27764.0,27759.0,0.3743]
[1680553027998,0.03277001,27764.0,27761.0,0.3743]
[1680553028236,0.03277001,27764.0,27762.0,0.14962018]
[1680553028473,0.03277001,27764.0,27763.0,0.0529]
[1680553029208,0.03277001,27764.0,27761.0,0.053378]
[1680553030399,0.02777001,27764.0,27761.0,0.053378]
[1680553032280,0.00012,27771.0,27763.0,0.18009]
[1680553032514,0.17286,27780.0,27776.0,0.16619329]
[1680553032764,0.1328,27780.0,27777.0,0.14189681]
[1680553032994,0.02277001,27781.0,27777.0,0.14207681]
[1680553033455,0.19557001,27781.0,27777.0,0.14207681]
[1680553033715,0.04170473,27780.0,27778.0,0.053609]
[1680553033955,0.04170473,27780.0,27778.0,0.19568581]
[1680553034190,0.04170473,27780.0,27779.0,0.052691]
[1680553034427,0.04170473,27780.0,27779.0,0.052751]
[1680553034648,0.04170473,27780.0,27779.0,0.0052871]
[1680553034890,0.04170473,27780.0,27779.0,0.052675]
[1680553035124,0.04170473,27780.0,27778.0,0.00018]
[1680553037971,0.04170473,27780.0,27778.0,0.049763]
[1680553038456,7.300099,27785.0,27779.0,0.4]
[1680553038457,7.19838045,27785.0,27779.0,0.4]
[1680553038688,7.19838045,27785.0,27780.0,0.053043]
[1680553038923,7.19838045,27785.0,27781.0,0.0453223]
[1680553039154,7.19838045,27785.0,27782.0,0.055293]
[1680553039413,7.19838045,27785.0,27782.0,0.19718981]
[1680553039647,0.04087566,27784.0,27783.0,0.052576]
[1680553039876,0.04087566,27784.0,27782.0,0.054017]
[1680553040127,0.04087566,27784.0,27782.0,0.06396893]
[1680553040353,0.04087566,27784.0,27783.0,0.051507]
[1680553040816,0.04087566,27784.0,27782.0,0.052592]
[1680553041041,0.04087566,27784.0,27780.0,0.051441]
[1680553041300,0.04070616,27784.0,27780.0,0.051441]
[1680553041546,0.04016605,27784.0,27781.0,0.0451441]
[1680553041773,0.04016605,27784.0,27782.0,0.05619]
[1680553042008,0.04016605,27784.0,27782.0,0.05637]
[1680553042950,0.04016605,27784.0,27782.0,0.00018]
[1680553043191,0.04016605,27784.0,27770.0,0.4]
[1680553043192,0.4,27783.0,27770.0,0.4]
[1680553043432,0.05797276,27784.0,27773.0,0.04]
[1680553043433,0.05815276,27784.0,27773.0,0.04]
[1680553043671,0.05797276,27784.0,27774.0,0.050706]
[1680553043878,0.03908363,27783.0,27777.0,0.18]
[1680553044161,0.03908363,27783.0,27771.0,0.17274]
[1680553044162,0.7743,27782.0,27765.0,0.05]
[1680553044389,0.022935,27781.0,27780.0,0.6]
[1680553044616,0.495975,27781.0,27780.0,0.6]
[1680553044851,0.495915,27781.0,27780.0,0.6]
[1680553045774,0.34092171,27781.0,27780.0,0.6]
[1680553046452,0.023115,27781.0,27780.0,0.6]
[1680553046687,0.01798671,27781.0,27780.0,0.6]
[1680553046917,0.01798671,27781.0,27780.0,0.80189681]
[1680553047149,0.03908363,27783.0,27780.0,0.697548]
[1680553047385,0.03908363,27783.0,27781.0,0.037741]
[1680553047708,0.03908363,27783.0,27781.0,0.55393781]
[1680553047841,7.13960379,27785.0,27783.0,0.3743]
[1680553048077,7.13960379,27785.0,27784.0,0.488296]
[1680553048323,7.13960379,27785.0,27784.0,0.488476]
[1680553049020,7.13960379,27785.0,27784.0,0.411046]
[1680553049520,7.13960379,27785.0,27784.0,0.036746]
[1680553049749,7.17387438,27785.0,27782.0,0.00018]
[1680553049978,7.17387438,27785.0,27781.0,0.037064]
[1680553050467,7.17393438,27785.0,27780.0,0.60018]
[1680553050700,7.19186109,27785.0,27781.0,0.036849]
[1680553050936,7.17405438,27785.0,27780.0,0.6]
[1680553051169,7.17405438,27785.0,27781.0,0.036113]
[1680553051398,7.17387438,27785.0,27781.0,0.17818981]
[1680553051623,7.17387438,27785.0,27782.0,0.41098]
[1680553051860,7.17387438,27785.0,27783.0,0.03649]
[1680553052094,7.17387438,27785.0,27783.0,0.00018]
[1680553052312,7.17387438,27785.0,27781.0,0.035295]
[1680553052313,7.17387438,27785.0,27782.0,0.00018]
[1680553052777,7.17387438,27785.0,27781.0,0.034915]
[1680553053025,7.17405438,27785.0,27781.0,0.034795]
[1680553053757,7.19186109,27785.0,27781.0,0.034795]
[1680553054301,7.19186109,27785.0,27780.0,0.6]
[1680553055428,0.494633,27784.0,27780.0,0.6]
[1680553055706,0.423588,27783.0,27780.0,0.6]
[1680553055992,0.321743,27782.0,27780.0,0.6]
[1680553056283,0.022257,27781.0,27780.0,0.6]
[1680553056605,0.21304371,27781.0,27780.0,0.6]
[1680553057348,0.51304371,27781.0,27780.0,0.6]
[1680553058630,0.51285536,27781.0,27780.0,0.60012]
[1680553058843,0.51285536,27781.0,27780.0,0.60018]
[1680553058844,0.51279536,27781.0,27780.0,0.60018]
[1680553059050,0.33999536,27781.0,27780.0,0.60018]
[1680553059295,0.51279536,27781.0,27780.0,0.60018]
[1680553059535,0.66745536,27781.0,27780.0,0.60018]
[1680553060726,0.64964865,27781.0,27780.0,0.60018]
[1680553060928,0.49498865,27781.0,27780.0,0.60018]
[1680553061136,0.51279536,27781.0,27780.0,0.60018]
[1680553062667,0.33999536,27781.0,27780.0,0.60018]
[1680553062891,0.03999536,27781.0,27780.0,0.74207681]
[1680553063112,0.03933269,27782.0,27780.0,0.60018]
[1680553063563,1.04562814,27784.0,27780.0,0.60018]
[1680553063564,0.03989271,27781.0,27780.0,0.60018]
[1680553064182,0.022086,27781.0,27780.0,0.60018]
[1680553064417,0.01780671,27782.0,27780.0,0.60018]
[1680553064651,0.01780671,27782.0,27781.0,0.13]
[1680553064857,0.195771,27782.0,27781.0,0.13018]
[1680553065069,0.04077771,27782.0,27781.0,0.13018]
[1680553065292,0.21357771,27782.0,27781.0,0.13018]
[1680553065503,0.51357771,27782.0,27781.0,0.13018]
[1680553066217,0.04077771,27782.0,27781.0,0.13018]
[1680553066421,0.03077771,27782.0,27781.0,0.13006]
[1680553066627,0.01780671,27782.0,27781.0,0.13018]
[1680553068150,7.13960379,27785.0,27781.0,0.203198]
[1680553068398,7.13960379,27785.0,27781.0,0.27207681]
[1680553068619,7.0274105,27785.0,27782.0,0.04073]
[1680553068831,7.0274105,27785.0,27781.0,0.037623]
[1680553069052,0.01780671,27784.0,27782.0,0.036731]
[1680553069264,0.01780671,27784.0,27781.0,0.00018]
[1680553069490,0.01780671,27784.0,27781.0,0.039173]
[1680553069736,0.05703962,27784.0,27781.0,0.00018]
[1680553069960,0.05703962,27784.0,27781.0,0.039435]
[1680553070169,0.01780671,27783.0,27781.0,0.039435]
[1680553071491,0.01780671,27783.0,27781.0,0.0641235]
[1680553071713,0.01780671,27783.0,27781.0,0.00018]
[1680553071927,0.03923291,27784.0,27781.0,0.038951]
[1680553072138,0.01780671,27783.0,27781.0,0.00018]
[1680553072353,0.03923291,27784.0,27781.0,0.00018]
[1680553072796,0.01780671,27783.0,27781.0,0.00018]
[1680553073017,0.01780671,27783.0,27781.0,0.09954]
[1680553073231,0.03923291,27784.0,27782.0,0.038739]
[1680553073446,0.03923291,27784.0,27782.0,0.00018]
[1680553076136,0.01913852,27784.0,27781.0,0.03729]
[1680553076569,0.02703345,27784.0,27781.0,0.03729]
[1680553076809,0.02703345,27784.0,27781.0,0.17918681]
[1680553077028,0.02703345,27784.0,27783.0,0.3743]
[1680553077238,0.02703345,27784.0,27783.0,0.468191]
[1680553077439,0.02703345,27784.0,27783.0,0.432198]
[1680553077663,7.0274105,27785.0,27783.0,0.039902]
[1680553077891,7.0274105,27785.0,27784.0,0.0930302]
[1680553078101,7.0274105,27785.0,27784.0,0.1307432]
[1680553078317,7.0274105,27785.0,27784.0,0.1487382]
[1680553078524,7.0274105,27785.0,27784.0,0.1307432]
[1680553078739,7.0274105,27785.0,27784.0,0.5235432]
[1680553078954,7.0274105,27785.0,27784.0,0.5415382]
[1680553079167,7.0274105,27785.0,27784.0,0.5410382]
[1680553080292,7.0274105,27785.0,27784.0,0.430513]
[1680553080508,7.0274105,27785.0,27784.0,0.056213]
[1680553080725,7.0275905,27785.0,27784.0,0.037533]
[1680553080947,7.0275905,27785.0,27783.0,0.040628]
[1680553081172,6.91919418,27785.0,27784.0,0.0640628]
[1680553081405,6.91919418,27785.0,27784.0,0.4975088]
[1680553081841,6.91919418,27785.0,27784.0,0.5306088]
[1680553082278,6.91919418,27785.0,27784.0,0.415451]
[1680553084253,6.91919418,27785.0,27784.0,0.415451]
[1680553085379,6.91919418,27785.0,27784.0,0.041151]
[1680553085601,6.93500089,27785.0,27783.0,0.036912]
[1680553086064,6.91737418,27785.0,27783.0,0.036912]
[1680553086277,6.91719418,27785.0,27784.0,0.3743]
[1680553086546,6.91719418,27785.0,27784.0,0.5181298]
[1680553086778,6.91719418,27785.0,27784.0,0.040891]
[1680553087002,6.93500089,27785.0,27784.0,0.039795]
[1680553087209,6.93500089,27785.0,27783.0,0.037622]
[1680553087654,6.91719418,27785.0,27783.0,0.037622]
[1680553087886,6.91719418,27785.0,27782.0,0.993176]
[1680553087887,6.91719418,27785.0,27782.0,0.60018]
[1680553088126,0.4,27784.0,27782.0,0.60018]
[1680553088375,0.41798671,27784.0,27782.0,0.12457513]
[1680553088595,0.41798671,27784.0,27765.0,0.05]
[1680553088596,0.56547397,27783.0,27765.0,0.05]
[1680553088816,0.50292822,27782.0,27766.0,0.4983]
[1680553089042,0.15466,27779.0,27766.0,0.64031681]
[1680553089249,0.419591,27778.0,27766.0,0.64031681]
[1680553089485,0.319484,27777.0,27766.0,0.74642449]
[1680553089696,0.020331,27776.0,27766.0,0.74642449]
[1680553089967,0.193191,27776.0,27766.0,0.64031681]
[1680553090440,0.192684,27775.0,27766.0,0.64031681]
[1680553090442,0.192684,27775.0,27767.0,0.14189681]
[1680553090735,0.192684,27775.0,27772.0,0.028791]
[1680553090736,0.019984,27774.0,27772.0,0.028791]
[1680553091234,0.021341,27775.0,27772.0,0.028791]
[1680553091689,0.192596,27776.0,27772.0,0.028791]
[1680553091928,0.03660471,27775.0,27772.0,0.028791]
[1680553092152,0.019176,27774.0,27772.0,0.028791]
[1680553092600,0.01780671,27773.0,27772.0,0.028791]
[1680553092885,0.03769071,27773.0,27772.0,0.028791]
[1680553093783,0.00769071,27773.0,27772.0,0.028791]
[1680553094004,0.016362,27774.0,27772.0,0.028791]
[1680553094790,0.3,27775.0,27772.0,0.028791]
[1680553094791,0.30018,27777.0,27772.0,0.028791]
[1680553095015,0.3,27777.0,27772.0,0.028791]
[1680553095230,0.016072,27776.0,27772.0,0.028791]
[1680553095477,0.03387871,27776.0,27772.0,0.028791]
[1680553095721,0.015966,27775.0,27772.0,0.028791]
[1680553096206,0.03377271,27775.0,27772.0,0.028791]
[1680553096493,0.03435071,27774.0,27772.0,0.028791]
[1680553096958,0.016258,27773.0,27772.0,0.028791]
[1680553097225,0.03406471,27773.0,27772.0,0.028791]
[1680553097779,0.016258,27773.0,27772.0,0.028791]
[1680553098060,0.015961,27774.0,27772.0,0.028791]
[1680553098330,0.00018,27779.0,27772.0,0.028791]
[1680553098606,0.01780671,27781.0,27773.0,0.14189681]
[1680553098894,0.17298,27783.0,27773.0,0.53326559]
[1680553099201,7.20684009,27785.0,27775.0,0.3743]
[1680553099202,6.91737418,27785.0,27775.0,0.3743]
[1680553099684,6.91719418,27785.0,27777.0,0.3743]
[1680553099976,6.91719418,27785.0,27779.0,0.3743]
[1680553100261,6.91719418,27785.0,27781.0,0.3743]
[1680553100511,6.91719418,27785.0,27782.0,0.18469481]
[1680553100777,6.91719418,27785.0,27783.0,0.042633]
[1680553100968,6.91719418,27785.0,27782.0,0.3743]
[1680553101191,6.91719418,27785.0,27783.0,0.043733]
[1680553101415,6.91719418,27785.0,27780.0,0.04125]
[1680553101656,6.91719418,27785.0,27780.0,0.18314681]
[1680553101881,6.91719418,27785.0,27781.0,0.042488]
[1680553102116,6.91719418,27785.0,27781.0,0.00018]
[1680553102354,6.91719418,27785.0,27781.0,0.04293]
[1680553102607,6.91719418,27785.0,27781.0,0.00018]
[1680553102845,6.91719418,27785.0,27782.0,0.00415]
[1680553103078,6.91719418,27785.0,27783.0,0.417658]
[1680553103309,6.91719418,27785.0,27784.0,0.417514]
[1680553103556,6.91712809,27785.0,27784.0,0.417694]
[1680553103780,6.91712809,27785.0,27784.0,0.4998784]
[1680553104015,6.91712809,27785.0,27784.0,0.417694]
[1680553104730,6.61712809,27785.0,27784.0,0.417694]
[1680553105414,6.61704104,27785.0,27784.0,0.417694]
[1680553105892,6.61716104,27785.0,27784.0,0.043274]
[1680553106154,6.61722104,27785.0,27784.0,0.4592834]
[1680553107537,6.61722104,27785.0,27784.0,0.043214]
[1680553107780,6.61722104,27785.0,27783.0,0.3743]
[1680553108040,6.61722104,27785.0,27782.0,0.041234]
[1680553108041,6.61722104,27785.0,27784.0,0.416607]
[1680553109492,6.63502775,27785.0,27784.0,0.042307]
[1680553109493,6.63502775,27785.0,27781.0,0.00018]
[1680553109496,6.80782775,27785.0,27780.0,0.00018]
[1680553109497,6.80164846,27785.0,27780.0,0.00018]
[1680553109765,0.015048,27784.0,27774.0,0.3743]
[1680553110048,0.40018,27784.0,27774.0,0.55362681]
[1680553110363,0.01780671,27783.0,27776.0,0.3743]
[1680553110646,0.01780671,27783.0,27778.0,0.3743]
[1680553110647,0.01798671,27783.0,27778.0,0.3743]
[1680553110923,0.01798671,27783.0,27780.0,0.3743]
[1680553111430,0.00018,27783.0,27781.0,0.04289]
[1680553111699,0.00018,27783.0,27781.0,0.458909]
[1680553111925,0.00018,27783.0,27782.0,0.445044]
[1680553112168,0.00018,27783.0,27782.0,0.819344]
[1680553113048,0.00018,27784.0,27782.0,0.819344]
[1680553113301,0.00018,27784.0,27783.0,0.416177]
[1680553114445,0.00012,27784.0,27783.0,0.416177]
[1680553114674,6.61722104,27785.0,27783.0,0.416177]
[1680553114900,6.61722104,27785.0,27784.0,0.418475]
[1680553115833,6.61722104,27785.0,27784.0,0.044175]
[1680553116052,6.61722104,27785.0,27784.0,0.5003305]
[1680553116312,6.61722104,27785.0,27784.0,0.5183255]
[1680553117025,6.61710104,27785.0,27784.0,0.418645]
[1680553117253,6.61722104,27785.0,27784.0,0.418465]
[1680553117476,6.61722104,27785.0,27784.0,0.418645]
[1680553117477,6.51704104,27785.0,27784.0,0.418645]
[1680553117923,6.51722104,27785.0,27784.0,0.418465]
[1680553118141,6.51722104,27785.0,27784.0,0.5003295]
[1680553119094,6.51722104,27785.0,27784.0,0.044165]
[1680553119352,6.53484775,27785.0,27780.0,0.00018]
[1680553119573,6.53502775,27785.0,27779.0,0.4549]
[1680553119800,6.53502775,27785.0,27777.0,0.00018]
[1680553119801,0.4,27784.0,27777.0,0.00018]
[1680553120030,0.40018,27784.0,27773.0,0.83458]
[1680553120272,0.31780671,27783.0,27774.0,0.041902]
[1680553120488,0.31798671,27783.0,27774.0,0.14189681]
[1680553120722,0.01780671,27782.0,27775.0,0.14189681]
[1680553120943,0.01798671,27782.0,27776.0,0.042717]
[1680553121160,0.01798671,27782.0,27776.0,0.24307519]
[1680553121407,0.01798671,27782.0,27777.0,0.042359]